Cogmind - Beta 17.1 @@@ ROGUE MODE // 2026.09.02 @ 14:39:45 Player: Scuttle Result: Destroyed by G-47 Trooper with Particle Gun Performance ------------- Evolutions (3) 1500 Regions Visited (6) 1200 Robots Destroyed (0) 0 Value Destroyed (10) 10 Prototype IDs (1) 20 Alien Tech Used (0) 0 Bonus (848) 848 TOTAL SCORE: 3578 Bonus ------- Pacifist 834 Follower Combat Kills 14 Cogmind --------- Core Integrity 0/700 Matter 149/300 Energy 99/100 System Corruption 0% Temperature Cool (9) Movement Core (50) Location -7/Factory Parts ------- > --- POWER (1) -------- (None) > --- PROPULSION (2) --- (None) > --- UTILITY (8) ------ (None) > --- WEAPON (2) ------- (None) > --- INVENTORY (5) ---- Powered Hammer Peak State ------------ > --- POWER ------------ (None) > --- PROPULSION ------- (None) > --- UTILITY ---------- Bomb Drone Bay > --- WEAPON ----------- Medium Laser > --- INVENTORY -------- (None) [Rating: 15] Favorites ----------- Power None Propulsion None Utility Reaction Control System Device Reaction Control System Processor Improved Signal Interpreter Protection Insulated Plating Weapon Medium Laser Energy Gun Medium Laser Energy Cannon Heavy Ion Cannon Impact Weapon Powered Hammer Build | -11 -10 -10 -9 -8 -8 -7 ------- Run | Yrd Mat Min Mat Mat Sto Fac Slots Evolved 6 | . . . 2 2 . 2 Power . | . . . . . . . Propulsion . | . . . . . . . Utility 6 | . . . 2 2 . 2 Weapon . | . . . . . . . Parts Attached 9 | 1 1 1 2 1 . 3 Power . | . . . . . . . Engine . | . . . . . . . Core . | . . . . . . . Reactor . | . . . . . . . Propulsion . | . . . . . . . Treads . | . . . . . . . Leg . | . . . . . . . Wheel . | . . . . . . . Hover . | . . . . . . . Flight . | . . . . . . . Utility 5 | . . 1 2 1 . 1 Device 3 | . . 1 2 . . . Storage . | . . . . . . . Processor 1 | . . . . . . 1 Hackware . | . . . . . . . Protection 1 | . . . . 1 . . Artifact . | . . . . . . . Weapon 4 | 1 1 . . . . 2 Energy Gun 2 | 1 1 . . . . . Energy Cannon 1 | . . . . . . 1 Ballistic Gun . | . . . . . . . Ballistic Cannon . | . . . . . . . Launcher . | . . . . . . . Special Weapon . | . . . . . . . Impact Weapon 1 | . . . . . . 1 Slashing Weapon . | . . . . . . . Piercing Weapon . | . . . . . . . Special Melee Weapon . | . . . . . . . Unidentified Prototypes 1 | . . 1 . . . . Parts Lost 5 | . 1 1 1 1 1 . Power . | . . . . . . . Propulsion . | . . . . . . . Utility 3 | . . . 1 1 1 . Weapon 2 | . 1 1 . . . . Highest Loss Streak 1 | . 1 1 1 1 1 . To Critical Strikes . | . . . . . . . Average Backups . | . . . . . . . Power . | . . . . . . . Propulsion . | . . . . . . . Utility . | . . . . . . . Weapon . | . . . . . . . Tool/Special . | . . . . . . . Unused Backups . | . . . . . . . Power . | . . . . . . . Propulsion . | . . . . . . . Utility . | . . . . . . . Weapon . | . . . . . . . Tool/Special . | . . . . . . . Average Slot Usage (%) 6 | . 11 12 9 9 5 2 Device 1 | . . 1 9 7 . . Energy Gun 2 | . 11 11 . . . . Peak Build Rating 15 | 1 1 15 3 3 3 4 Average Rating 1 | . . . 2 2 1 . On Entrance 1 | . 1 1 . 3 3 . Avg Prop Armor Cover (%) . | . . . . . . . Naked Turns 269 | . 4 20 3 1 34 207 Heaviest Build 3 | 2 2 2 1 3 3 . Greatest Support 3 | 3 3 3 3 3 3 3 Greatest Overweight (x) . | . . . . . . . Average Overweight (x) . | . . . . . . . Largest Inventory Capacity 5 | 5 5 5 5 5 5 5 Average Capacity 5 | 5 5 5 5 5 5 5 Most Carried 2 | 1 1 2 1 1 . 1 Average Carried . | . . . . . . . Final Capacity 5 | 5 5 5 5 5 5 5 Final Carried 1 | 1 . . . . . 1 Class Distribution -------------------- 100% | Mutant Dominant Class ---------------- Mutant | -10/Materials Mutant | -10/Mines Mutant | -9/Materials Mutant | -8/Materials Mutant | -8/Storage Mutant | -7/Factory Resources | -11 -10 -10 -9 -8 -8 -7 ----------- Run | Yrd Mat Min Mat Mat Sto Fac Matter Collected 78 | . . 78 . . . . Remotely . | . . . . . . . Salvage Created . | . . . . . . . Parts . | . . . . . . . Haulers Intercepted . | . . . . . . . Recyclers Shooed . | . . . . . . . Parts Field Recycled . | . . . . . . . Retrieved Matter . | . . . . . . . Parts Self-Destructed . | . . . . . . . Prevented . | . . . . . . . Parts Restored . | . . . . . . . Kills | -11 -10 -10 -9 -8 -8 -7 ------- Run | Yrd Mat Min Mat Mat Sto Fac Combat Hostiles Destroyed . | . . . . . . . Classes Destroyed . | . . . . . . . Best Kill Streak . | . . . . . . . Combat Bots Only . | . . . . . . . Max Kills in Single Turn . | . . . . . . . Gunslinging . | . . . . . . . Exploded . | . . . . . . . Melee . | . . . . . . . Uniques/NPCs Destroyed . | . . . . . . . Combat | -11 -10 -10 -9 -8 -8 -7 -------- Run | Yrd Mat Min Mat Mat Sto Fac Hostile Shots Fired 192 | . 19 10 45 25 18 75 Missed 86 | . 7 2 22 16 8 31 Hits 106 | . 12 8 23 9 10 44 Projectile 106 | . 12 8 23 9 10 44 AOE 7 | . . 7 . . . . Critical Strikes 5 | . . . . . . 5 Damage Taken 1614 | . 113 247 233 146 169 706 Core 1300 | . 47 193 177 38 139 706 Absorbed by Shields . | . . . . . . . Core Remaining (%) 56 | 100 . 4 55 . 67 . Volleys Fired 2 | . . . . . . 2 Largest 1 | . . . . . . 1 Hottest 65 | . . . . . . 65 Shots Fired 2 | . . . . . . 2 Gun . | . . . . . . . Cannon 2 | . . . . . . 2 Launcher . | . . . . . . . Special . | . . . . . . . Kinetic . | . . . . . . . Thermal 2 | . . . . . . 2 Explosive . | . . . . . . . Electromagnetic . | . . . . . . . Robot Hit Streak . | . . . . . . . Robot Miss Streak . | . . . . . . . Penetration Max . | . . . . . . . Secondary Targets . | . . . . . . . Shots Hit Robots . | . . . . . . . Core Hits 1 | . . . . . . 1 Critical Kills . | . . . . . . . Critical Parts Destroyed . | . . . . . . . Critical Strikes . | . . . . . . . Melee Attacks 1 | . . . . . . 1 Impact 1 | . . . . . . 1 Slashing . | . . . . . . . Piercing . | . . . . . . . Sneak Attacks . | . . . . . . . Combat Hostiles . | . . . . . . . Follow-up Attacks . | . . . . . . . Damage Inflicted 42 | . . 2 . 10 . 30 Guns . | . . . . . . . Cannons . | . . . . . . . Explosions . | . . . . . . . Melee . | . . . . . . . Ramming 42 | . . 2 . 10 . 30 Kinetic . | . . . . . . . Thermal . | . . . . . . . Explosive . | . . . . . . . Electromagnetic . | . . . . . . . Impact . | . . . . . . . Slashing . | . . . . . . . Piercing . | . . . . . . . Highest Corruption 2 | . . 2 . . . . Average Corruption 2 | . . 2 . . . . Corruption Purged . | . . . . . . . Corruption Blocked . | . . . . . . . Effects 1 | . . 1 . . . . Energy Discharges 1 | . . 1 . . . . Overload Shots . | . . . . . . . Overflow Damage . | . . . . . . . Projectiles . | . . . . . . . Explosions . | . . . . . . . Melee . | . . . . . . . Knockbacks 1 | . . . . . . 1 Impact 1 | . . . . . . 1 Kinetic . | . . . . . . . Secondary . | . . . . . . . Self-Inflicted Damage 19 | . . . . 5 . 14 Shots . | . . . . . . . Rammed 9 | . . 2 . 2 . 5 Targets Rammed 9 | . . 2 . 2 . 5 Kicked . | . . . . . . . Crushed . | . . . . . . . Highest Temperature 2 | . . . . . . 2 Average Temperature 2 | . . . . . . 2 Received Heat Transfer 540 | . 30 . 51 81 63 315 Siege Activations . | . . . . . . . Martial Activations . | . . . . . . . Shielding Activations . | . . . . . . . Robots Disrupted . | . . . . . . . Combat Hostiles . | . . . . . . . Robots Corrupted . | . . . . . . . Combat Hostiles . | . . . . . . . Parts Fried . | . . . . . . . Impact Corruptions . | . . . . . . . Robots Melted . | . . . . . . . Combat Hostiles . | . . . . . . . Parts Melted . | . . . . . . . Heat Transferred . | . . . . . . . Parts Sabotaged . | . . . . . . . Parts Stolen . | . . . . . . . Parts Stripped . | . . . . . . . Power Chain Reactions . | . . . . . . . Alert | -11 -10 -10 -9 -8 -8 -7 ------- Run | Yrd Mat Min Mat Mat Sto Fac Maximum Alert Level 1 | . . . . . . 1 Low Security (%) 96 | 100 100 100 100 100 100 93 Level 1 3 | . . . . . . 7 Level 2 . | . . . . . . . Level 3 . | . . . . . . . Level 4 . | . . . . . . . Level 5 . | . . . . . . . High Security . | . . . . . . . Max Security . | . . . . . . . Peak Influence 300 | . . 61 15 5 . 300 Initial 5 | . . . 3 5 . . Average 28 | . . 19 1 1 . 54 Influence Increases 477 | . . 71 15 . . 391 Destroy 0b10 Robot/C 40 | . . 40 . . . . Destroy Leader 10 | . . 10 . . . . Allied During Kill 6 | . . 6 . . . . Disable Machine 15 | . . . . . . 15 Destroy Structure 1 | . . . . . . 1 Partial Spotted 30 | . . . . . . 30 Lose Combat Pursuer 375 | . . 15 15 . . 345 Influence Decreases 187 | . . 60 11 15 . 101 Entered New Map 18 | . . . 8 10 . . Time Decay 139 | . . 30 3 5 . 101 Lost Part 10 | . . 10 . . . . Lost Ally 20 | . . 20 . . . . Squads Dispatched 8 | . . . 1 2 1 4 Investigation 1 | . . . . 1 . . Extermination . | . . . . . . . Reinforcement 7 | . . . 1 1 1 4 Assault . | . . . . . . . Garrison . | . . . . . . . Intercept . | . . . . . . . Searches Triggered . | . . . . . . . Construction Impeded 1 | . . . . 1 . . Haulers Reinforced . | . . . . . . . Active Scanning Responses . | . . . . . . . Cargo Convoy Interrupts . | . . . . . . . Stealth | -11 -10 -10 -9 -8 -8 -7 --------- Run | Yrd Mat Min Mat Mat Sto Fac Distress Signals 5 | . . . . . 2 3 Communications Jammed . | . . . . . . . Distress Signals . | . . . . . . . Times Spotted 74 | . 5 4 12 9 10 34 Peak Tracking Total 13 | . 5 3 11 9 10 13 Tactical Retreats 7 | . . 1 1 . . 5 Traps | -11 -10 -10 -9 -8 -8 -7 ------- Run | Yrd Mat Min Mat Mat Sto Fac Traps Triggered 3 | . . . . . . 3 Indirectly . | . . . . . . . Trap Hack Attempts . | . . . . . . . Triggered . | . . . . . . . Disarmed . | . . . . . . . Reprogrammed . | . . . . . . . Reused . | . . . . . . . Traps Extracted . | . . . . . . . Installed . | . . . . . . . Triggered . | . . . . . . . Machines | -11 -10 -10 -9 -8 -8 -7 ---------- Run | Yrd Mat Min Mat Mat Sto Fac Machines Disabled 1 | . . . . . . 1 Max in Single Turn 1 | . . . . . . 1 Machines Repaired . | . . . . . . . Machines Dismantled . | . . . . . . . Machines Sabotaged . | . . . . . . . Overloaded Fab Kills . | . . . . . . . Hacking | -11 -10 -10 -9 -8 -8 -7 --------- Run | Yrd Mat Min Mat Mat Sto Fac Machines Accessed 1 | . . 1 . . . . Terminals . | . . . . . . . Fabricators . | . . . . . . . Repair Stations . | . . . . . . . Recycling Units . | . . . . . . . Scanalyzers . | . . . . . . . Garrison Access . | . . . . . . . Total Hacks 1 | . . 1 . . . . Successful 1 | . . 1 . . . . Failed . | . . . . . . . Catastrophic . | . . . . . . . Database Lockouts . | . . . . . . . Manual . | . . . . . . . Terminals . | . . . . . . . Fabricators . | . . . . . . . Repair Stations . | . . . . . . . Recycling Units . | . . . . . . . Scanalyzers . | . . . . . . . Garrison Access . | . . . . . . . Terminal Hacks 1 | . . 1 . . . . Open Door 1 | . . 1 . . . . Fabricator Hacks . | . . . . . . . Repair Station Hacks . | . . . . . . . Recycling Unit Hacks . | . . . . . . . Scanalyzer . | . . . . . . . Garrison Access Hacks . | . . . . . . . Unauthorized Hacks . | . . . . . . . Terminals . | . . . . . . . Fabricators . | . . . . . . . Repair Stations . | . . . . . . . Recycling Units . | . . . . . . . Scanalyzers . | . . . . . . . Garrison Access . | . . . . . . . Data Cores Recovered . | . . . . . . . Used . | . . . . . . . Hacking Detections . | . . . . . . . Full Trace Events . | . . . . . . . Feedback Events . | . . . . . . . Feedback Blocked . | . . . . . . . Robot Schematics Acquired . | . . . . . . . Robots Built . | . . . . . . . Authchips . | . . . . . . . Time . | . . . . . . . Total Robot Build Rating . | . . . . . . . Part Schematics Acquired . | . . . . . . . Parts Built . | . . . . . . . Authchips . | . . . . . . . Time . | . . . . . . . Total Part Build Rating . | . . . . . . . Part Studies Acquired . | . . . . . . . Parts Repaired . | . . . . . . . Time . | . . . . . . . Parts Recycled . | . . . . . . . Recycled Matter . | . . . . . . . Retrieved Matter . | . . . . . . . Retrieved Components . | . . . . . . . Parts Scanalyzed . | . . . . . . . Part Schematics Acquired . | . . . . . . . Parts Damaged . | . . . . . . . Bothacking | -11 -10 -10 -9 -8 -8 -7 ------------ Run | Yrd Mat Min Mat Mat Sto Fac Used RIF Installer . | . . . . . . . Robots Hacked . | . . . . . . . Non-combat . | . . . . . . . Combat . | . . . . . . . Robot Hacks Applied . | . . . . . . . Relay Couplers Released . | . . . . . . . Fabnet Peak Effective % . | . . . . . . . Robots Rewired . | . . . . . . . Allies Hacked . | . . . . . . . Hacks Repelled . | . . . . . . . Allies | -11 -10 -10 -9 -8 -8 -7 -------- Run | Yrd Mat Min Mat Mat Sto Fac Total Allies 2 | . . 2 . . . . Largest Group 2 | . . 2 . . . . Highest-Rated Group 49 | . . 49 . . . . Highest-Rated Ally 31 | . . 31 . . . . Total Orders . | . . . . . . . Ally Attacks 10 | . . 10 . . . . Total Damage 104 | . . 104 . . . . Kills 3 | . . 3 . . . . Allies Corrupted . | . . . . . . . Allies Melted . | . . . . . . . Intel | -11 -10 -10 -9 -8 -8 -7 ------- Run | Yrd Mat Min Mat Mat Sto Fac Active Infowar (turns) . | . . . . . . . Robot Analysis Total . | . . . . . . . Derelict Logs Recovered . | . . . . . . . Drone Launches . | . . . . . . . Drone Recoveries . | . . . . . . . Exploration | -11 -10 -10 -9 -8 -8 -7 ------------- Run | Yrd Mat Min Mat Mat Sto Fac Turns Passed 644 | 12 39 109 59 65 60 300 Spaces Moved 1188 | 20 75 209 111 122 119 532 Core 1188 | 20 75 209 111 122 119 532 Treads . | . . . . . . . Legs . | . . . . . . . Wheels . | . . . . . . . Hover . | . . . . . . . Flight . | . . . . . . . Fastest Speed 50 | 50 50 50 50 50 50 50 Average Speed 50 | 50 50 50 50 50 50 50 Slowest Speed 50 | 50 50 50 50 50 50 50 Overloaded Moves . | . . . . . . . Propulsion Burnouts . | . . . . . . . Robots Hopped . | . . . . . . . Potential Cave-ins . | . . . . . . . Cave-ins Triggered . | . . . . . . . Exploration Rate (%) 21 | 3 22 53 14 18 24 16 Regions Visited 6 Branch Regions 2 Pre-discovered Areas . | . . . . . . . Known Exits Taken . | . . . . . . . Unknown Exits Taken 6 | 1 1 1 1 1 1 . Scrap Searched 1 | . . 1 . . . . Spaces Dug . | . . . . . . . Terrain Destroyed 1 | . . . . . . 1 Melee . | . . . . . . . Projectile 1 | . . . . . . 1 AOE . | . . . . . . . Terrain Rammed . | . . . . . . . Walls Destroyed . | . . . . . . . Machines Disabled . | . . . . . . . Actions | -11 -10 -10 -9 -8 -8 -7 --------- Run | Yrd Mat Min Mat Mat Sto Fac Total 1228 | 21 75 213 113 125 118 563 Wait . | . . . . . . . Move 1181 | 19 74 208 110 120 118 532 Hop . | . . . . . . . Pick Up 5 | 1 . . 1 1 . 2 Fast Attach 4 | 1 . 1 1 . . 1 Attach 5 | . 1 . 1 1 . 2 Detach 3 | . . 1 . . . 2 Swap . | . . . . . . . Drop 2 | . . 1 . . . 1 Fire 2 | . . . . . . 2 Melee 1 | . . . . . . 1 Ram 9 | . . 2 . 2 . 5 Kick . | . . . . . . . Crush . | . . . . . . . Escape Stasis 16 | . . . . 1 . 15 Rewire . | . . . . . . . Trap . | . . . . . . . Miscellaneous . | . . . . . . . Route ------- -11/Scrapyard -10/Materials -10/Mines -9/Materials -8/Materials -8/Storage -7/Factory (discovered 1 exit: *Low) History --------- Turn | Location | Event 6 | -11/Scrapyard | Discovered new exit (range 15) 13 | -11/Scrapyard | Entered Materials 45 | -10/Materials | Discovered new exit (range 15) 52 | -10/Materials | Entered Mines 57 | -10/Mines | Found the Drone Emporium 59 | -10/Mines | Found Prototype Device 59 | -10/Mines | Identified Bomb Drone Bay 75 | -10/Mines | Found a hidden stash of uninstalled traps 90 | -10/Mines | Assembled infested the area 137 | -10/Mines | Core integrity fell below 50% 140 | -10/Mines | Core integrity fell below 20% 159 | -10/Mines | Discovered new exit (range 7) 161 | -10/Mines | Entered Materials 161 | -9/Materials | Evolved 2 slots: Utility x2 215 | -9/Materials | Discovered new exit (range 11) 220 | -9/Materials | Entered another Materials area 220 | -8/Materials | Evolved 2 slots: Utility x2 284 | -8/Materials | Discovered new exit (range 3) 285 | -8/Materials | Entered Storage 311 | -8/Storage | Build established: Mutant 337 | -8/Storage | Discovered new exit (range 16) 345 | -8/Storage | Entered Factory 345 | -7/Factory | Evolved 2 slots: Utility x2 366 | -7/Factory | Discovered new exit (range 4) 430 | -7/Factory | Identified exit to Lower Caves 595 | -7/Factory | Core integrity fell below 50% 603 | -7/Factory | Core integrity fell below 20% 645 | -7/Factory | Destroyed by G-47 Trooper with Particle Gun Last Messages --------------- single hit meet or exceed the object's Armor value. Inspect machines by right-clicking on them, and walls via Ctrl-RMB (or as any other object in Keyboard Mode). Hovering the cursor over an object also shows its Armor in the Scan window. 00561_ Triggered Blade Trap. 00561_ Massive razor-sharp blades shoot up from within the floor. 00562_ W-25 Informer sends out distress signal. 00568_ Slammed into G-47 Trooper. 00570_ Slammed into K-01 Serf. 00572_ Slammed into W-25 Informer. 00599_ Critical hit (Burn: +37). 00616_ O-24 Administrator sends out distress signal. 00616_ O-24 Administrator: "IFF HANDSHAKE FAILED. SECURING TERMINAL." 00620_ O-24 Administrator uses terminal to summon reinforcements. 00620_ ALERT: Hostiles spotted, dispatching reinforcements to Terminal F006. 00620_ O-24 Administrator locks terminal. 00638_ O-24 Administrator: "IFF HANDSHAKE FAILED. SECURING TERMINAL." 00645_ ALERT: Hostiles spotted, dispatching reinforcements to Terminal F005. Map ----- +----------------------------------------------------+ | """" ##### #????????????????????# #?? | | """" + #????????????????????# #?? | | """" #######????????????????????# #?? | | #??????????????????????????# #?? | | #????????????#########+##### ##? | | #????????????# | | ########????????????# | | ????????????????????# | | ????????????????????# | | ????????????????????# | | ????????????????????# ###+#######+#### | | ????????????????????# #?????????? ??? | | ????????????????????# #?????????? ???? | | ????????????????????# #??????????""????? ? | | ????????????????????# #??????????"" ????? ? | | ??????????????? """ + #???????????????????? ?? | | ????????????? # #??????????????????????? | | ????????????""" """?# t #??????????????????????? | | ?????????????"" "???# #??????????????????????? | | ????????????????????# #??????????????????????? | | ????????????????????# #??????????????????????? | | ????????????????????# k #??????????????????????? | | ????????????????????# #??????????????????????? | | ????????????????????# #??????????????????????? | | ????????????????????# #??????????????????????? | | ????????????????????# @#??????????????????????? | | ?????????????? +??????????????????????? | | ?????????????# #??????????????????????? | | ?????????????# +??????????????????????? | | ?????????????# """ g #??????????????????????? | | ?????????????# """ g #??????????????????????? | | ?????????????# """ ###??????????????????????? | | ????????????????? ?????????????????????????? | | ???????????????? g?????????????????????????? | | ???????????????? #### ?????????????????????????? | | ???????????????? ???# ?????????????????????????? | | ??????????????? ????# ?????????????????????????? | | ???????????????? ?????#??????????????????????????? | | ?????????????????????????????????????????????????? | | ?????????????????????????????????????????????????? | | ?????????????????????????????????????????????????? | | ?????????????????????????????????????????????????? | | ?????????????????????????????????????????????????? | | ?????????????????????????????????????????????????? | | ?????????????????????????????????????????????????? | | ?????????????????????????????????????????????????? | | ?????????????????????????????????????????????????? | | ?????????????????????????????????????????????????? | | ?????????????????????????????????????????????????? | | ?????????????????????????????????????????????????? | +----------------------------------------------------+ Best States ------------- Heat Dissipation 34 Energy Generation 5 Energy Capacity 100 Matter Stores 168 Matter Capacity 300 Sight Range 16 Terrain Scan Density 10 Armor Coverage 150 Resistance: EM 15 Evasion (%) 58 Item Schematics ----------------- None Robot Schematics ------------------ None Fabricated ------------ Nothing Repaired ---------- Nothing Studied --------- None Alien Tech Used ----------------- None Achievements -------------- None Challenges ------------ None Game ------ Seed CoolantBlastFalx Manual? 0 Play Time 00:10:26 Cumulative 632.5 hours Start 2026.09.02 @ 14:32:20 End 2026.09.02 @ 14:39:45 Sessions 1 Manual Loads 0 Difficulty Rogue Special Mode None Game No. 269 Rogue 269 Adventurer 0 Explorer 0 Win Type - Total 38 Types 17/4/6/2/1/2/2/2/1/1 Lore% 91 Gallery% 83 Achievement% 78 Wizard Run 0 Options --------- Layout 0 ASCII 0 Keyboard 1 Movement Arrows Keybinds 0 Fullscreen 2 Font 18/Terminus Map View 76x50 Zoom Use 0% Tactical HUD 1 Map Filters BRIGHTNESS(90)|SATURATION(90) Filters NONE Steam 1 RUN: c7aa5366-2f4f-4947-a4de-21044efc9927